fUSD/lending_fUSD_20240215
["ID","MTS","AMOUNT","RATE_DAILY","PERIOD"]
[314156455,1708030248894,-151.0,0.00038356,7]
[314156456,1708030248908,-158.306838,0.00038356,7]
[314156457,1708030248923,-152.12682,0.00038356,7]
[314156458,1708030248934,-157.789721,0.00038356,7]
[314156459,1708030248945,-151.0,0.00038356,7]
[314156460,1708030248961,-151.0,0.00038356,7]
[314156461,1708030248974,-155.34,0.00038356,2]
[314156462,1708030248990,-151.0,0.00038356,7]
[314156463,1708030249007,-151.0,0.00038356,7]
[314156464,1708030249021,-151.0,0.00038356,7]
[314156465,1708030249034,-151.0,0.00038356,7]
[314156466,1708030249047,-153.218011,0.00038356,7]
[314156467,1708030249061,-151.0,0.00038356,7]
[314156468,1708030249075,-164.865869,0.00038356,7]
[314156469,1708030249090,-269.358227,0.00038356,7]
[314156470,1708030249106,-158.083973,0.00038356,7]
[314156471,1708030249119,-158.380825,0.00038356,7]
[314156472,1708030249130,-178.905771,0.00038356,7]
[314156473,1708030249141,-295.0,0.00038356,7]
[314156474,1708030249152,-151.0,0.00038356,7]
[314156475,1708030249167,-151.0,0.00038356,7]
[314156476,1708030249179,-159.121245,0.00038356,7]
[314156477,1708030249198,-204.945274,0.00038356,7]
[314156478,1708030249211,-151.0,0.00038356,7]
[314156479,1708030249223,-151.0,0.00038356,7]
[314156480,1708030249233,-151.0,0.00038356,7]
[314156481,1708030249247,-151.0,0.00038356,7]
[314156482,1708030249259,-205.993678,0.00038356,7]
[314156483,1708030249276,-151.0,0.00038356,7]
[314156484,1708030249290,-193.30357,0.00038356,7]
[314156485,1708030249304,-445.693169,0.00038356,7]
[314156486,1708030249317,-445.693169,0.00038356,7]
[314156487,1708030249331,-445.693169,0.00038356,7]
[314156488,1708030249346,-445.693169,0.00038356,7]
[314156489,1708030249359,-151.0,0.00038356,7]
[314156490,1708030249373,-151.0,0.00038356,7]
[314156491,1708030249385,-151.0,0.00038356,7]
[314156492,1708030249398,-151.0,0.00038356,7]
[314156493,1708030249411,-151.0,0.00038356,7]
[314156494,1708030249424,-151.0,0.00038356,7]
[314156495,1708030249439,-151.0,0.00038356,7]
[314156496,1708030249451,-151.0,0.00038356,7]
[314156497,1708030249463,-151.0,0.00038356,7]
[314156498,1708030249475,-151.0,0.00038356,7]
[314156499,1708030249487,-151.0,0.00038356,7]
[314156500,1708030249500,-151.0,0.00038356,7]
[314156501,1708030249511,-151.0,0.00038356,7]
[314156502,1708030249525,-151.0,0.00038356,7]
[314156503,1708030249538,-191.019497,0.00038356,7]
[314156504,1708030249549,-151.0,0.00038356,7]
[314156505,1708030249561,-151.0,0.00038356,7]
[314156506,1708030249573,-172.724711,0.00038356,7]
[314156507,1708030249584,-151.0,0.00038356,7]
[314156508,1708030249597,-151.0,0.00038356,7]
[314156509,1708030249608,-151.0,0.00038356,7]
[314156510,1708030249619,-151.0,0.00038356,7]
[314156511,1708030249631,-152.748963,0.00038356,7]
[314156512,1708030249644,-151.0,0.00038356,7]
[314156513,1708030249655,-151.0,0.00038356,7]
[314156514,1708030249667,-151.0,0.00038356,7]
[314156515,1708030249679,-151.0,0.00038356,7]
[314156516,1708030249690,-567.689107,0.00038382,10]
[314156517,1708030249706,-452.61974966,0.000384,7]
[314156518,1708030249720,-937.46,0.000384,3]
[314156519,1708030249734,-937.46,0.000384,3]
[314156520,1708030249747,-937.46,0.000384,3]
[314156521,1708030249760,-937.46,0.000384,3]
[314156522,1708030249773,-937.46,0.000384,3]
[314156523,1708030249786,-937.46,0.000384,3]
[314156524,1708030249798,-937.46,0.000384,3]
[314156525,1708030249810,-937.46,0.000384,3]
[314156526,1708030249822,-937.46,0.000384,3]
[314156527,1708030249835,-937.46,0.000384,3]
[314156528,1708030249846,-937.46,0.000384,3]
[314156529,1708030249859,-937.46,0.000384,3]
[314156530,1708030249870,-937.46,0.000384,3]
[314156531,1708030249882,-937.46,0.000384,3]
[314156532,1708030249894,-937.46,0.000384,3]
[314156533,1708030249906,-937.46,0.000384,3]
[314156534,1708030249917,-937.46,0.000384,3]
[314156535,1708030249929,-937.46,0.000384,3]
[314156536,1708030249941,-937.46,0.000384,3]
[314156537,1708030249953,-937.46,0.000384,3]
[314156538,1708030249965,-153.99,0.000384,3]
[314156539,1708030249977,-152.91,0.00038441,2]
[314156540,1708030249989,-567.021624,0.00038448,25]
[314156541,1708030250001,-151.0,0.0003849,7]
[314156542,1708030250012,-221.075265,0.0003849,7]
[314156543,1708030250026,-151.0,0.0003849,7]
[314156544,1708030250037,-160.144882,0.0003849,7]
[314156545,1708030250050,-151.0,0.0003849,7]
[314156546,1708030250062,-100000.0,0.000385,3]
[314156547,1708030250074,-151.0,0.000385,7]
[314156548,1708030250086,-151.0,0.000385,7]
[314156549,1708030250098,-151.0,0.000385,2]
[314156550,1708030250110,-151.0,0.000385,2]
[314156551,1708030250122,-151.0,0.000385,7]
[314156552,1708030250134,-151.0,0.000385,7]
[314156553,1708030250147,-151.0,0.000385,7]
[314156554,1708030250159,-445.693169,0.000385,7]
[314156555,1708030250171,-445.693169,0.000385,7]
[314156556,1708030250180,-151.0,0.000385,7]
[314156557,1708030250190,-151.0,0.000385,7]
[314156558,1708030250201,-1261.17,0.00038521,2]
[314156559,1708030250210,-1315.77536883,0.00038533,2]
[314156560,1708030250219,-151.0,0.00038539,7]
[314156561,1708030250229,-489.97894041,0.00038544,2]
[314156562,1708030250238,-150.0,0.00038544,2]
[314156563,1708030250247,-227.64625164,0.00038544,2]
[314156564,1708030250257,-567.021624,0.00038548,24]
[314156565,1708030250458,-200.0,0.00038588,15]
[314156566,1708030250484,-200.0,0.00038593,20]
[314156567,1708030250500,-563.0,0.000386,2]
[314156568,1708030250510,-250.0,0.000386,2]
[314156569,1708030250520,-151.0,0.000386,7]
[314156570,1708030250529,-153.334641,0.000386,7]
[314156571,1708030250540,-3000.0,0.000386,36]
[314156572,1708030250550,-800.0,0.00038606,15]
[314156573,1708030250559,-200.0,0.00038606,20]
[314156574,1708030250569,-3000.0,0.0003861,36]
[314156575,1708030250578,-151.0,0.0003861,7]
[314156576,1708030250587,-151.0,0.0003861,7]
[314156577,1708030250597,-151.0,0.0003861,7]
[314156578,1708030250606,-151.0,0.0003861,7]
[314156579,1708030250615,-286.135688,0.0003861,7]
[314156580,1708030250625,-9506.36991943,0.0003861,12]
[314156581,1708030250634,-200.0,0.0003862,20]
[314156582,1708030250644,-3000.0,0.0003862,36]
[314156583,1708030250653,-500.0,0.0003863,7]
[314156584,1708030250663,-548.70613449,0.0003863,9]
[314156585,1708030250672,-267.88568123,0.0003863,7]
[314156586,1708030250681,-500.0,0.0003863,7]
[314156587,1708030250692,-500.0,0.0003863,7]
[314156588,1708030250701,-500.0,0.0003863,7]
[314156589,1708030250711,-527.08760599,0.0003863,7]
[314156590,1708030250721,-500.0,0.0003863,7]
[314156591,1708030250731,-500.0,0.0003863,7]
[314156592,1708030250741,-500.0,0.0003863,7]
[314156593,1708030250753,-500.0,0.0003863,7]
[314156594,1708030250763,-500.0,0.0003863,7]
[314156595,1708030250774,-347.15363267,0.0003863,7]
[314156596,1708030250786,-521.57248437,0.0003863,7]
[314156597,1708030250797,-223.62467067,0.0003863,7]
[314156598,1708030250807,-270.45073933,0.0003863,7]
[314156599,1708030250818,-500.0,0.0003863,7]
[314156600,1708030250828,-500.0,0.0003863,7]
[314156601,1708030250838,-500.0,0.0003863,7]
[314156602,1708030250848,-500.0,0.0003863,7]
[314156603,1708030250858,-205.27405841,0.0003863,7]
[314156604,1708030250868,-534.20158857,0.0003863,7]
[314156605,1708030250877,-500.0,0.0003863,7]
[314156606,1708030250887,-500.0,0.0003863,7]
[314156607,1708030250896,-565.36238069,0.0003863,2]
[314156608,1708030250905,-500.0,0.0003863,7]
[314156609,1708030250914,-500.0,0.0003863,2]
[314156610,1708030250924,-500.0,0.0003863,7]
[314156611,1708030250933,-192.43800487,0.0003863,7]
[314156612,1708030250943,-500.0,0.0003863,7]
[314156613,1708030250953,-583.68290875,0.0003863,7]
[314156614,1708030250963,-500.0,0.0003863,7]
[314156615,1708030250972,-470.74564382,0.0003863,7]
[314156616,1708030250982,-500.0,0.0003863,7]
[314156617,1708030250991,-1000.0,0.0003863,7]
[314156618,1708030251001,-500.0,0.0003863,7]
[314156619,1708030251011,-500.0,0.0003863,7]
[314156620,1708030251022,-500.0,0.0003863,7]
[314156621,1708030251031,-500.0,0.0003863,7]
[314156622,1708030251041,-500.0,0.0003863,7]
[314156623,1708030251050,-500.0,0.0003863,7]
[314156624,1708030251060,-500.0,0.0003863,7]
[314156625,1708030251070,-500.0,0.0003863,7]
[314156626,1708030251080,-500.0,0.0003863,7]
[314156627,1708030251092,-1000.0,0.0003863,120]
[314156628,1708030251108,-500.0,0.0003863,7]
[314156629,1708030251125,-500.0,0.0003863,7]
[314156630,1708030251135,-500.0,0.0003863,7]
[314156631,1708030251145,-500.0,0.0003863,7]
[314156632,1708030251154,-500.0,0.0003863,7]
[314156633,1708030251163,-500.0,0.0003863,7]
[314156634,1708030251172,-500.0,0.0003863,7]
[314156635,1708030251182,-500.0,0.0003863,7]
[314156636,1708030251191,-213.78158265,0.0003863,7]
[314156637,1708030251200,-500.0,0.0003863,7]
[314156638,1708030251210,-5000.0,0.0003863,14]
[314156639,1708030251219,-547.38626519,0.0003863,7]
[314156640,1708030251228,-500.0,0.0003863,7]
[314156641,1708030251238,-150.0,0.0003863,7]
[314156642,1708030251248,-554.28148185,0.0003863,7]
[314156643,1708030251257,-500.0,0.0003863,7]
[314156644,1708030251267,-500.0,0.0003863,7]
[314156645,1708030251276,-500.0,0.0003863,7]
[314156646,1708030251286,-500.0,0.0003863,7]
[314156647,1708030251296,-527.52819965,0.0003863,7]
[314156648,1708030251306,-500.0,0.0003863,7]
[314156649,1708030251316,-500.0,0.0003863,7]
[314156650,1708030251326,-500.0,0.0003863,7]
[314156651,1708030251336,-500.0,0.0003863,7]
[314156652,1708030251347,-500.0,0.0003863,7]
[314156653,1708030251357,-500.0,0.0003863,7]
[314156654,1708030251367,-500.0,0.0003863,7]
[314156655,1708030251377,-500.0,0.0003863,7]
[314156656,1708030251388,-500.0,0.0003863,7]
[314156657,1708030251397,-500.0,0.0003863,7]
[314156658,1708030251407,-500.0,0.0003863,7]
[314156659,1708030251417,-500.0,0.0003863,7]
[314156660,1708030251426,-500.0,0.0003863,7]
[314156661,1708030251440,-500.0,0.0003863,7]
[314156662,1708030251450,-500.0,0.0003863,7]
[314156663,1708030251460,-500.0,0.0003863,7]
[314156664,1708030251470,-500.0,0.0003863,7]
[314156665,1708030251481,-500.0,0.0003863,7]
[314156666,1708030251491,-500.0,0.0003863,7]
[314156667,1708030251501,-500.0,0.0003863,7]
[314156668,1708030251511,-500.0,0.0003863,7]
[314156669,1708030251522,-500.0,0.0003863,7]
[314156670,1708030251531,-500.0,0.0003863,7]
[314156671,1708030251540,-500.0,0.0003863,7]
[314156672,1708030251550,-500.0,0.0003863,7]
[314156673,1708030251559,-402.78663686,0.0003863,7]
[314156674,1708030251569,-526.51571352,0.0003863,7]
[314156675,1708030251578,-500.0,0.0003863,7]
[314156676,1708030251587,-500.0,0.0003863,7]
[314156677,1708030251597,-500.0,0.0003863,7]
[314156678,1708030251613,-516.51780824,0.0003863,7]
[314156679,1708030251623,-1000.0,0.0003863,14]
[314156680,1708030251632,-500.0,0.0003863,7]
[314156681,1708030251642,-500.0,0.0003863,7]
[314156682,1708030251652,-500.0,0.0003863,7]
[314156683,1708030251661,-500.0,0.0003863,7]
[314156684,1708030251671,-500.0,0.0003863,7]
[314156685,1708030251680,-500.0,0.0003863,7]
[314156686,1708030251690,-500.0,0.0003863,2]
[314156687,1708030251700,-500.0,0.0003863,7]
[314156688,1708030251709,-500.0,0.0003863,7]
[314156689,1708030251719,-500.0,0.0003863,7]
[314156690,1708030251729,-500.0,0.0003863,7]
[314156691,1708030251739,-500.0,0.0003863,7]
[314156692,1708030251748,-500.0,0.0003863,7]
[314156693,1708030251758,-311.18653086,0.0003863,7]
[314156694,1708030251768,-500.0,0.0003863,7]
[314156695,1708030251778,-500.0,0.0003863,7]
[314156696,1708030251789,-500.0,0.0003863,7]
[314156697,1708030251799,-500.0,0.0003863,7]
[314156698,1708030251809,-500.0,0.0003863,7]
[314156699,1708030251819,-500.0,0.0003863,7]
[314156700,1708030251828,-500.0,0.0003863,7]
[314156701,1708030251838,-390.70057527,0.0003863,7]
[314156702,1708030251847,-500.0,0.0003863,7]
[314156703,1708030251857,-500.0,0.0003863,7]
[314156704,1708030251867,-500.0,0.0003863,7]
[314156705,1708030251877,-500.0,0.0003863,7]
[314156706,1708030251887,-500.0,0.0003863,7]
[314156707,1708030251898,-500.0,0.0003863,7]
[314156708,1708030251908,-517.8069897,0.0003863,7]
[314156709,1708030251918,-500.0,0.0003863,7]
[314156710,1708030251927,-500.0,0.0003863,7]
[314156711,1708030251937,-500.0,0.0003863,7]
[314156712,1708030251946,-500.0,0.0003863,7]
[314156713,1708030251956,-500.0,0.0003863,7]
[314156714,1708030251965,-500.0,0.0003863,7]
[314156715,1708030251974,-500.0,0.0003863,7]
[314156716,1708030251984,-514.18308753,0.0003863,7]
[314156717,1708030251994,-518.48608303,0.0003863,7]
[314156718,1708030252003,-500.0,0.0003863,7]
[314156719,1708030252013,-500.0,0.0003863,7]
[314156720,1708030252023,-500.0,0.0003863,7]
[314156721,1708030252032,-500.0,0.0003863,7]
[314156722,1708030252042,-500.0,0.0003863,7]
[314156723,1708030252051,-500.0,0.0003863,7]
[314156724,1708030252061,-503.79362809,0.0003863,7]
[314156725,1708030252071,-502.9539551,0.0003863,7]
[314156726,1708030252080,-408.17691274,0.0003863,7]
[314156727,1708030252089,-500.0,0.0003863,7]
[314156728,1708030252099,-500.0,0.0003863,7]
[314156729,1708030252108,-770.94,0.0003863,7]
[314156730,1708030252118,-500.0,0.0003863,7]
[314156731,1708030252127,-513.99335436,0.0003863,7]
[314156732,1708030252137,-500.0,0.0003863,7]
[314156733,1708030252146,-500.0,0.0003863,7]
[314156734,1708030252157,-3000.0,0.0003863,36]
[314156735,1708030252167,-500.0,0.0003863,7]
[314156736,1708030252176,-500.0,0.0003863,7]
[314156737,1708030252186,-500.0,0.0003863,7]
[314156738,1708030252195,-500.0,0.0003863,7]
[314156739,1708030252204,-500.0,0.0003863,7]
[314156740,1708030252214,-500.0,0.0003863,7]
[314156741,1708030252223,-504.39,0.0003863,7]
[314156742,1708030252233,-500.0,0.0003863,7]
[314156743,1708030252242,-500.0,0.0003863,7]
[314156744,1708030252252,-500.0,0.0003863,7]
[314156745,1708030252261,-500.0,0.0003863,7]
[314156746,1708030252270,-500.0,0.0003863,7]
[314156747,1708030252279,-500.0,0.0003863,7]
[314156748,1708030252289,-500.0,0.0003863,7]
[314156749,1708030252298,-500.0,0.0003863,7]
[314156750,1708030252307,-500.0,0.0003863,7]
[314156751,1708030252317,-500.0,0.0003863,7]
[314156752,1708030252327,-500.0,0.0003863,7]
[314156753,1708030252337,-500.0,0.0003863,7]
[314156754,1708030252346,-537.83236643,0.0003863,7]
[314156755,1708030252356,-549.33164318,0.0003863,7]
[314156756,1708030252366,-500.0,0.0003863,7]
[314156757,1708030252375,-500.0,0.0003863,7]
[314156758,1708030252385,-621.35313092,0.0003863,7]
[314156759,1708030252395,-500.0,0.0003863,7]
[314156760,1708030252404,-500.0,0.0003863,7]
[314156761,1708030252413,-500.0,0.0003863,7]
[314156762,1708030252422,-500.0,0.0003863,7]
[314156763,1708030252432,-151.0,0.0003863,7]
[314156764,1708030252441,-500.0,0.0003863,7]
[314156765,1708030252451,-500.0,0.0003863,7]
[314156766,1708030252465,-500.0,0.0003863,7]
[314156767,1708030252477,-500.0,0.0003863,7]
[314156768,1708030252487,-487.57248043,0.0003863,7]
[314156769,1708030252499,-511.81594067,0.0003863,7]
[314156770,1708030252510,-500.0,0.0003863,7]
[314156771,1708030252521,-500.0,0.0003863,7]
[314156772,1708030252530,-929.82,0.0003863,7]
[314156773,1708030252542,-500.0,0.0003863,7]
[314156774,1708030252551,-500.0,0.0003863,7]
[314156775,1708030252561,-500.0,0.0003863,7]
[314156776,1708030252570,-500.0,0.0003863,7]
[314156777,1708030252580,-500.0,0.0003863,7]
[314156778,1708030252590,-500.0,0.0003863,7]
[314156779,1708030252600,-911.6,0.0003863,7]
[314156780,1708030252610,-500.0,0.0003863,7]
[314156781,1708030252619,-500.0,0.0003863,7]
[314156782,1708030252629,-500.0,0.0003863,7]
[314156783,1708030252639,-500.0,0.0003863,7]
[314156784,1708030252648,-685.25,0.0003863,7]
[314156785,1708030252658,-500.0,0.0003863,7]
[314156786,1708030252669,-614.56,0.0003863,7]
[314156787,1708030252677,-73.71855508,0.0003863,7]
[314156788,1708030252882,-426.28144492,0.0003863,7]
[314156789,1708030252893,-500.0,0.0003863,7]
[314156790,1708030252903,-318.70201796,0.0003863,7]
[314156791,1708030252913,-500.0,0.0003863,7]
[314156792,1708030252924,-521.64,0.0003863,7]
[314156793,1708030252935,-602.17071513,0.0003863,7]
[314156794,1708030252946,-792.35,0.0003863,7]
[314156795,1708030252956,-500.0,0.0003863,7]
[314156796,1708030252966,-500.0,0.0003863,7]
[314156797,1708030252976,-500.0,0.0003863,7]
[314156798,1708030252986,-500.0,0.0003863,7]
[314156799,1708030252997,-2332.53,0.0003863,7]
[314156800,1708030253008,-500.0,0.0003863,7]
[314156801,1708030253018,-500.0,0.0003863,7]
[314156802,1708030253027,-500.0,0.0003863,7]
[314156803,1708030253037,-500.0,0.0003863,7]
[314156804,1708030253047,-500.0,0.0003863,7]
[314156805,1708030253057,-500.0,0.0003863,7]
[314156806,1708030253068,-585.9,0.0003863,7]
[314156807,1708030253077,-339.37503507,0.0003863,7]
[314156808,1708030253087,-500.0,0.0003863,7]
[314156809,1708030253098,-500.0,0.0003863,7]
[314156810,1708030253109,-500.0,0.0003863,7]
[314156811,1708030253119,-500.0,0.0003863,2]
[314156812,1708030253129,-500.0,0.0003863,7]
[314156813,1708030253141,-500.0,0.0003863,7]
[314156814,1708030253152,-500.0,0.0003863,7]
[314156815,1708030253162,-500.0,0.0003863,7]
[314156816,1708030253172,-500.0,0.0003863,7]
[314156817,1708030253182,-500.0,0.0003863,7]
[314156818,1708030253194,-500.0,0.0003863,7]
[314156819,1708030253205,-500.0,0.0003863,7]
[314156820,1708030253217,-500.0,0.0003863,7]
[314156821,1708030253227,-500.0,0.0003863,7]
[314156822,1708030253237,-500.0,0.0003863,7]
[314156823,1708030253247,-500.0,0.0003863,7]
[314156824,1708030253256,-500.0,0.0003863,7]
[314156825,1708030253266,-500.0,0.0003863,7]
[314156826,1708030253277,-500.0,0.0003863,7]
[314156827,1708030253287,-500.0,0.0003863,7]
[314156828,1708030253297,-500.0,0.0003863,7]
[314156829,1708030253307,-500.0,0.0003863,7]
[314156830,1708030253316,-1291.83,0.0003863,7]
[314156831,1708030253325,-500.0,0.0003863,7]
[314156832,1708030253335,-500.0,0.0003863,7]
[314156833,1708030253345,-500.0,0.0003863,7]
[314156834,1708030253356,-500.0,0.0003863,7]
[314156835,1708030253366,-500.0,0.0003863,7]
[314156836,1708030253375,-500.0,0.0003863,7]
[314156837,1708030253385,-500.0,0.0003863,7]
[314156838,1708030253396,-500.0,0.0003863,7]
[314156839,1708030253405,-666.17,0.0003863,7]
[314156840,1708030253414,-500.0,0.0003863,7]
[314156841,1708030253423,-500.0,0.0003863,7]
[314156842,1708030253433,-500.0,0.0003863,7]
[314156843,1708030253444,-500.0,0.0003863,7]
[314156844,1708030253455,-500.0,0.0003863,7]
[314156845,1708030253466,-514.39,0.0003863,7]
[314156846,1708030253477,-500.0,0.0003863,7]
[314156847,1708030253487,-781.55,0.0003863,7]
[314156848,1708030253498,-500.0,0.0003863,7]
[314156849,1708030253509,-520.18,0.0003863,7]
[314156850,1708030253520,-151.0,0.0003863,7]
[314156851,1708030253531,-500.0,0.0003863,7]
[314156852,1708030253542,-500.0,0.0003863,7]
[314156853,1708030253551,-500.0,0.0003863,7]
[314156854,1708030253563,-151.0,0.0003863,7]
[314156855,1708030253572,-197.200938,0.0003863,7]
[314156856,1708030253581,-229.89893227,0.0003863,7]
[314156857,1708030253591,-500.0,0.0003863,7]
[314156858,1708030253600,-500.0,0.0003863,7]
[314156859,1708030253610,-500.0,0.0003863,7]
[314156860,1708030253620,-500.0,0.0003863,7]
[314156861,1708030253629,-562.91,0.0003863,7]
[314156862,1708030253639,-500.0,0.0003863,7]
[314156863,1708030253648,-500.0,0.0003863,7]
[314156864,1708030253658,-500.0,0.0003863,7]
[314156865,1708030253668,-500.0,0.0003863,7]
[314156866,1708030253677,-622.52,0.0003863,7]
[314156867,1708030253686,-500.0,0.0003863,7]
[314156868,1708030253697,-353.1308435,0.0003863,7]
[314156869,1708030253707,-1470.33,0.0003863,7]
[314156870,1708030253717,-500.0,0.0003863,7]
[314156871,1708030253726,-151.0,0.0003863,7]
[314156872,1708030253878,-500.0,0.0003863,7]
[314156873,1708030253890,-1026.64,0.0003863,7]
[314156874,1708030253900,-500.0,0.0003863,7]
[314156875,1708030253910,-530.36,0.0003863,7]
[314156876,1708030253920,-500.0,0.0003863,7]
[314156877,1708030253930,-526.37,0.0003863,7]
[314156878,1708030253939,-500.0,0.0003863,7]
[314156879,1708030253949,-500.0,0.0003863,7]
[314156880,1708030253959,-500.0,0.0003863,7]
[314156881,1708030253969,-500.0,0.0003863,7]
[314156882,1708030253978,-500.0,0.0003863,7]
[314156883,1708030253987,-500.0,0.0003863,7]
[314156884,1708030253997,-629.84,0.0003863,7]
[314156885,1708030254006,-500.0,0.0003863,7]
[314156886,1708030254015,-500.0,0.0003863,7]
[314156887,1708030254026,-151.0,0.0003863,7]
[314156888,1708030254035,-1476.08,0.0003863,7]
[314156889,1708030254045,-8496.67,0.0003863,7]
[314156890,1708030254055,-500.0,0.0003863,7]
[314156891,1708030254064,-500.0,0.0003863,7]
[314156892,1708030254074,-500.0,0.0003863,7]
[314156893,1708030254084,-774.14,0.0003863,7]
[314156894,1708030254094,-500.0,0.0003863,7]
[314156895,1708030254104,-500.0,0.0003863,7]
[314156896,1708030254113,-151.0,0.0003863,7]
[314156897,1708030254122,-725.35,0.0003863,7]
[314156898,1708030254132,-500.0,0.0003863,7]
[314156899,1708030254141,-500.0,0.0003863,7]
[314156900,1708030254151,-500.0,0.0003863,7]
[314156901,1708030254161,-518.47674793,0.00038632,2]
[314156902,1708030254171,-800.0,0.00038633,15]
[314156903,1708030254181,-200.0,0.00038633,20]
[314156904,1708030254190,-500.0,0.00038633,20]
[314156905,1708030254200,-325.0,0.0003864,2]
[314156906,1708030254210,-3000.0,0.0003864,36]
[314156907,1708030254219,-200.0,0.00038647,20]
[314156908,1708030254229,-567.021624,0.00038648,25]
[314156909,1708030254238,-3000.0,0.0003865,36]
[314156910,1708030254248,-3000.0,0.0003866,36]
[314156911,1708030254257,-800.0,0.0003866,15]
[314156912,1708030254267,-200.0,0.0003866,20]
[314156913,1708030254278,-3000.0,0.0003867,36]
[314156914,1708030254287,-2000.0,0.00038672,2]
[314156915,1708030254297,-200.0,0.00038672,2]
[314156916,1708030254307,-200.0,0.00038674,20]
[314156917,1708030254316,-5248.673567,0.0003868,36]
[314156918,1708030254326,-200.0,0.00038687,15]
[314156919,1708030254335,-800.0,0.00038687,15]
[314156920,1708030254344,-200.0,0.00038687,10]
[314156921,1708030254354,-200.0,0.00038687,20]
[314156922,1708030254363,-500.0,0.00038687,20]
[314156923,1708030254373,-1261.17,0.00038714,2]
[314156924,1708030254383,-151.18,0.00038727,2]
[314156925,1708030254392,-166.14,0.00038729,2]
[314156926,1708030254401,-152.91,0.00038741,2]
[314156927,1708030254411,-567.021624,0.00038748,24]
[314156928,1708030254421,-3366.6,0.0003877,7]
[314156929,1708030254430,-3366.6,0.0003877,7]
[314156930,1708030254441,-3366.6,0.0003877,7]
[314156931,1708030254451,-3366.6,0.0003877,7]
[314156932,1708030254464,-536.11074432,0.000388,2]
[314156933,1708030254474,-151.0,0.000388,7]
[314156934,1708030254484,-363.40865848,0.00038804,2]
[314156935,1708030254493,-500.0,0.00038805,2]
[314156936,1708030254502,-501.6691,0.00038805,2]
[314156937,1708030254512,-1000.0,0.00038805,2]
[314156938,1708030254521,-1000.0,0.00038805,2]
[314156939,1708030254531,-1101.0688,0.00038805,2]
[314156940,1708030254541,-500.0,0.00038805,2]
[314156941,1708030254551,-500.0,0.00038805,2]
[314156942,1708030254561,-500.0,0.00038805,2]
[314156943,1708030254571,-500.0,0.00038805,2]
[314156944,1708030254580,-500.0,0.00038805,2]
[314156945,1708030254589,-500.0,0.00038805,2]
[314156946,1708030254606,-500.0,0.00038805,2]
[314156947,1708030254615,-553.5681,0.00038805,2]
[314156948,1708030254625,-1130.26321765,0.0003881,10]
[314156949,1708030254635,-205.0,0.0003881,19]
[314156950,1708030254645,-152.98623785,0.00038814,2]
[314156951,1708030254654,-567.021624,0.00038848,25]
[314156952,1708030254664,-3980.22,0.000389,7]
[314156953,1708030254673,-152.94624,0.000389,7]
[314156954,1708030254683,-151.0,0.000389,7]